[Event "November 21 Early 2023"]
[Site "https://www.chess.com"]
[Date "2023.11.21"]
[Round "11"]
[White "Cueto, Jonny"]
[Black "Mikhailova, Irina"]
[Result "0-1"]
[Board "136"]
[TimeControl "180+1"]
[WhiteFideId "3300145"]
[BlackFideId "4109040"]
[WhiteElo "2155"]
[BlackElo "2009"]
[WhiteTeam "BOL"]
[BlackTeam "RUS"]
[WhiteClock "0:00:00"]
[BlackClock "0:00:10"]

1. d4 {[%clk 0:02:59]}  Nf6 {[%clk 0:02:59]} 2. Bf4 {[%clk 0:02:58]}  g6 {[%clk 0:02:59]} 3. Nc3 {[%clk 0:02:58]}  Bg7 {[%clk 0:02:59]} 4. e4 {[%clk 0:02:58]}  d6 {[%clk 0:02:58]} 5. Qd2 {[%clk 0:02:58]}  Nc6 {[%clk 0:02:56]} 6. f3 {[%clk 0:02:53]}  e5 {[%clk 0:02:46]} 7. dxe5 {[%clk 0:02:49]}  Nxe5 {[%clk 0:02:46]} 8. O-O-O {[%clk 0:02:41]}  Qe7 {[%clk 0:02:45]} 9. h4 {[%clk 0:02:36]}  Be6 {[%clk 0:02:43]} 10. Kb1 {[%clk 0:02:07]}  O-O-O {[%clk 0:02:20]} 11. Nb5 {[%clk 0:02:06]}  a6 {[%clk 0:02:18]} 12. Nd4 {[%clk 0:01:59]}  Nfd7 {[%clk 0:02:08]} 13. Qa5 {[%clk 0:01:54]}  Kb8 {[%clk 0:02:03]} 14. Bxa6 {[%clk 0:01:21]}  bxa6 {[%clk 0:02:00]} 15. Qxa6 {[%clk 0:01:20]}  Nc5 {[%clk 0:01:50]} 16. Qa5 {[%clk 0:00:55]}  Kc8 {[%clk 0:01:43]} 17. Nb5 {[%clk 0:00:51]}  Nc6 {[%clk 0:01:05]} 18. Qa3 {[%clk 0:00:36]}  Bc4 {[%clk 0:00:40]} 19. Nc3 {[%clk 0:00:32]}  Qf6 {[%clk 0:00:23]} 20. Bd2 {[%clk 0:00:30]}  Kd7 {[%clk 0:00:17]} 21. Bg5 {[%clk 0:00:26]}  Qe6 {[%clk 0:00:17]} 22. Qxc5 {[%clk 0:00:24]}  f6 {[%clk 0:00:16]} 23. Bf4 {[%clk 0:00:23]}  Ke7 {[%clk 0:00:16]} 24. Qe3 {[%clk 0:00:22]}  Ne5 {[%clk 0:00:16]} 25. Bxe5 {[%clk 0:00:21]}  fxe5 {[%clk 0:00:16]} 26. Nh3 {[%clk 0:00:21]}  Bf6 {[%clk 0:00:16]} 27. Ng5 {[%clk 0:00:22]}  Bxg5 {[%clk 0:00:15]} 28. Qxg5+ {[%clk 0:00:23]}  Kf7 {[%clk 0:00:15]} 29. Nd5 {[%clk 0:00:22]}  Bxd5 {[%clk 0:00:14]} 30. Rxd5 {[%clk 0:00:21]}  c6 {[%clk 0:00:14]} 31. Rd2 {[%clk 0:00:21]}  Rd7 {[%clk 0:00:15]} 32. h5 {[%clk 0:00:21]}  Qf6 {[%clk 0:00:15]} 33. hxg6+ {[%clk 0:00:21]}  Qxg6 {[%clk 0:00:14]} 34. Qxg6+ {[%clk 0:00:18]}  Kxg6 {[%clk 0:00:15]} 35. a4 {[%clk 0:00:12]}  h5 {[%clk 0:00:14]} 36. b3 {[%clk 0:00:09]}  d5 {[%clk 0:00:14]} 37. g3 {[%clk 0:00:09]}  d4 {[%clk 0:00:13]} 38. Kb2 {[%clk 0:00:08]}  c5 {[%clk 0:00:13]} 39. a5 {[%clk 0:00:03]}  Rf7 {[%clk 0:00:13]} 40. Rd3 {[%clk 0:00:03]}  Rhf8 {[%clk 0:00:12]} 41. Rf1 {[%clk 0:00:03]}  Ra7 {[%clk 0:00:12]} 42. Ra1 {[%clk 0:00:02]}  Rfa8 {[%clk 0:00:11]} 43. Rdd1 {[%clk 0:00:01]}  Rxa5 {[%clk 0:00:11]} 44. Rxa5 {[%clk 0:00:00]}  Rxa5 {[%clk 0:00:10]} 0-1

[Event "November 21 Early 2023"]
[Site "https://www.chess.com"]
[Date "2023.11.21"]
[Round "11"]
[White "Der_Balak_3Halak"]
[Black "EdmundPlayer"]
[Result "1-0"]
[Board "138"]
[TimeControl "180+1"]
[WhiteElo "2303"]
[BlackElo "2227"]
[WhiteClock "0:00:15"]
[BlackClock "0:00:00"]

1. e4 {[%clk 0:02:57]}  Nf6 {[%clk 0:02:59]} 2. Nc3 {[%clk 0:02:54]}  e5 {[%clk 0:02:55]} 3. f4 {[%clk 0:02:54]}  d5 {[%clk 0:02:54]} 4. exd5 {[%clk 0:02:48]}  Nxd5 {[%clk 0:02:50]} 5. Nxd5 {[%clk 0:02:27]}  Qxd5 {[%clk 0:02:48]} 6. Nf3 {[%clk 0:02:27]}  Bg4 {[%clk 0:02:04]} 7. fxe5 {[%clk 0:02:20]}  Bc5 {[%clk 0:01:27]} 8. c3 {[%clk 0:01:38]}  Bxf3 {[%clk 0:00:46]} 9. Qxf3 {[%clk 0:01:35]}  Qxe5+ {[%clk 0:00:21]} 10. Be2 {[%clk 0:01:36]}  Nc6 {[%clk 0:00:21]} 11. d4 {[%clk 0:01:19]}  Bxd4 {[%clk 0:00:21]} 12. Bf4 {[%clk 0:01:19]}  Qa5 {[%clk 0:00:08]} 13. b4 {[%clk 0:01:08]}  Nxb4 {[%clk 0:00:05]} 14. Qe4+ {[%clk 0:01:06]}  Kf8 {[%clk 0:00:03]} 15. Bd2 {[%clk 0:00:48]}  Re8 {[%clk 0:00:03]} 16. Qb1 {[%clk 0:00:37]}  Qa6 {[%clk 0:00:02]} 17. Qxb4+ {[%clk 0:00:15]}  c5 {[%clk 0:00:00]} 18. O-O-O {[%clk 0:00:15]} 1-0

[Event "November 21 Early 2023"]
[Site "https://www.chess.com"]
[Date "2023.11.21"]
[Round "11"]
[White "Osmonbekov, Talaibek"]
[Black "Pumpkin_in_moonlight"]
[Result "1-0"]
[Board "139"]
[TimeControl "180+1"]
[WhiteFideId "2017253"]
[WhiteElo "2135"]
[BlackElo "2294"]
[WhiteTeam "USA"]
[WhiteClock "0:00:13"]
[BlackClock "0:00:06"]

1. d4 {[%clk 0:03:00]}  Nf6 {[%clk 0:02:56]} 2. Nc3 {[%clk 0:03:01]}  d5 {[%clk 0:02:53]} 3. Bf4 {[%clk 0:03:01]}  a6 {[%clk 0:02:41]} 4. e3 {[%clk 0:03:02]}  Bf5 {[%clk 0:02:33]} 5. Nf3 {[%clk 0:03:02]}  e6 {[%clk 0:02:28]} 6. Ne5 {[%clk 0:03:02]}  h6 {[%clk 0:02:24]} 7. g4 {[%clk 0:03:03]}  Bh7 {[%clk 0:02:23]} 8. h4 {[%clk 0:02:50]}  Nbd7 {[%clk 0:02:19]} 9. Bd3 {[%clk 0:02:45]}  Ne4 {[%clk 0:02:10]} 10. Nxe4 {[%clk 0:02:26]}  dxe4 {[%clk 0:02:10]} 11. Bc4 {[%clk 0:02:17]}  Bd6 {[%clk 0:01:53]} 12. g5 {[%clk 0:01:44]}  Bf5 {[%clk 0:01:47]} 13. gxh6 {[%clk 0:01:29]}  gxh6 {[%clk 0:01:46]} 14. Qh5 {[%clk 0:01:11]}  Nxe5 {[%clk 0:01:31]} 15. dxe5 {[%clk 0:01:04]}  Bb4+ {[%clk 0:01:26]} 16. c3 {[%clk 0:01:03]}  Be7 {[%clk 0:01:25]} 17. Rd1 {[%clk 0:00:59]}  Qc8 {[%clk 0:01:22]} 18. Rg1 {[%clk 0:00:57]}  b5 {[%clk 0:01:16]} 19. Rg7 {[%clk 0:00:44]}  Rf8 {[%clk 0:01:14]} 20. Bb3 {[%clk 0:00:37]}  c5 {[%clk 0:01:06]} 21. Bxh6 {[%clk 0:00:35]}  c4 {[%clk 0:01:03]} 22. Bc2 {[%clk 0:00:33]}  Ra7 {[%clk 0:00:56]} 23. Bg5 {[%clk 0:00:20]}  a5 {[%clk 0:00:29]} 24. Bxe7 {[%clk 0:00:16]}  Rxe7 {[%clk 0:00:28]} 25. Qg5 {[%clk 0:00:15]}  b4 {[%clk 0:00:27]} 26. Ba4+ {[%clk 0:00:14]}  Rd7 {[%clk 0:00:25]} 27. h5 {[%clk 0:00:14]}  bxc3 {[%clk 0:00:15]} 28. bxc3 {[%clk 0:00:15]}  Rh8 {[%clk 0:00:12]} 29. h6 {[%clk 0:00:13]}  Kf8 {[%clk 0:00:06]} 30. Bxd7 {[%clk 0:00:13]} 1-0

[Event "November 21 Early 2023"]
[Site "https://www.chess.com"]
[Date "2023.11.21"]
[Round "11"]
[White "Pasmendjambvirgulptipon98"]
[Black "SeLaPegoACualquiera"]
[Result "0-1"]
[Board "144"]
[TimeControl "180+1"]
[WhiteElo "2203"]
[BlackElo "2161"]
[WhiteClock "0:00:00"]
[BlackClock "0:01:00"]

1. d4 {[%clk 0:03:00]}  Nf6 {[%clk 0:02:59]} 2. Nf3 {[%clk 0:03:00]}  c5 {[%clk 0:03:00]} 3. c3 {[%clk 0:02:55]}  cxd4 {[%clk 0:03:01]} 4. cxd4 {[%clk 0:02:55]}  d5 {[%clk 0:03:02]} 5. Nc3 {[%clk 0:02:55]}  Nc6 {[%clk 0:03:03]} 6. Bf4 {[%clk 0:02:55]}  Bg4 {[%clk 0:03:03]} 7. Ne5 {[%clk 0:02:53]}  Nxe5 {[%clk 0:02:59]} 8. Bxe5 {[%clk 0:02:52]}  e6 {[%clk 0:02:41]} 9. f3 {[%clk 0:02:51]}  Bh5 {[%clk 0:02:39]} 10. e3 {[%clk 0:02:15]}  a6 {[%clk 0:02:35]} 11. Bd3 {[%clk 0:02:02]}  Be7 {[%clk 0:02:33]} 12. O-O {[%clk 0:02:01]}  O-O {[%clk 0:02:32]} 13. Rc1 {[%clk 0:01:55]}  b5 {[%clk 0:02:31]} 14. Qc2 {[%clk 0:01:54]}  Rc8 {[%clk 0:02:25]} 15. a3 {[%clk 0:01:47]}  Bg6 {[%clk 0:02:21]} 16. e4 {[%clk 0:01:38]}  Nd7 {[%clk 0:02:15]} 17. Bg3 {[%clk 0:01:33]}  Nb6 {[%clk 0:02:15]} 18. Qf2 {[%clk 0:01:27]}  Nc4 {[%clk 0:02:11]} 19. Bxc4 {[%clk 0:01:03]}  Rxc4 {[%clk 0:02:07]} 20. Rfe1 {[%clk 0:00:28]}  Bf6 {[%clk 0:02:00]} 21. e5 {[%clk 0:00:26]}  Be7 {[%clk 0:01:58]} 22. Ne2 {[%clk 0:00:25]}  Bd3 {[%clk 0:01:50]} 23. Nf4 {[%clk 0:00:19]}  Bg6 {[%clk 0:01:42]} 24. h4 {[%clk 0:00:18]}  Qc7 {[%clk 0:01:34]} 25. Rxc4 {[%clk 0:00:13]}  Qxc4 {[%clk 0:01:28]} 26. h5 {[%clk 0:00:13]}  Bf5 {[%clk 0:01:26]} 27. Qd2 {[%clk 0:00:08]}  Rc8 {[%clk 0:01:19]} 28. Bf2 {[%clk 0:00:06]}  Bg5 {[%clk 0:01:17]} 29. g4 {[%clk 0:00:05]}  Qc2 {[%clk 0:01:04]} 30. Qxc2 {[%clk 0:00:03]}  Rxc2 {[%clk 0:01:04]} 31. gxf5 {[%clk 0:00:03]}  Bxf4 {[%clk 0:01:03]} 32. fxe6 {[%clk 0:00:03]}  fxe6 {[%clk 0:01:04]} 33. b4 {[%clk 0:00:02]}  Rc3 {[%clk 0:01:02]} 34. Kg2 {[%clk 0:00:02]}  Rxa3 {[%clk 0:01:02]} 35. Rc1 {[%clk 0:00:00]}  Bxc1 {[%clk 0:01:00]} 0-1

[Event "November 21 Early 2023"]
[Site "https://www.chess.com"]
[Date "2023.11.21"]
[Round "11"]
[White "Bazzano, Sebastian"]
[Black "Zepeda Berlanga, Jan Enrique"]
[Result "1-0"]
[Board "148"]
[TimeControl "180+1"]
[WhiteFideId "104566"]
[BlackFideId "5132355"]
[WhiteElo "2324"]
[BlackElo "1680"]
[WhiteTeam "ARG"]
[BlackTeam "MEX"]
[WhiteClock "0:01:44"]
[BlackClock "0:00:00"]

1. d4 {[%clk 0:03:00]}  Nf6 {[%clk 0:02:56]} 2. Bf4 {[%clk 0:02:59]}  e6 {[%clk 0:02:53]} 3. e3 {[%clk 0:02:59]}  c5 {[%clk 0:02:52]} 4. c3 {[%clk 0:02:59]}  Nc6 {[%clk 0:02:52]} 5. Nd2 {[%clk 0:02:59]}  Be7 {[%clk 0:02:52]} 6. Ngf3 {[%clk 0:02:59]}  b6 {[%clk 0:02:50]} 7. h3 {[%clk 0:02:58]}  O-O {[%clk 0:02:49]} 8. Bd3 {[%clk 0:02:58]}  Bb7 {[%clk 0:02:47]} 9. O-O {[%clk 0:02:57]}  Rc8 {[%clk 0:02:46]} 10. Re1 {[%clk 0:02:57]}  cxd4 {[%clk 0:02:43]} 11. exd4 {[%clk 0:02:57]}  d5 {[%clk 0:02:42]} 12. Ne5 {[%clk 0:02:53]}  Re8 {[%clk 0:02:24]} 13. Bb5 {[%clk 0:02:46]}  a6 {[%clk 0:02:06]} 14. Nxc6 {[%clk 0:02:45]}  Bxc6 {[%clk 0:02:06]} 15. Bxa6 {[%clk 0:02:45]}  Ra8 {[%clk 0:02:03]} 16. Bd3 {[%clk 0:02:44]}  Bd6 {[%clk 0:01:50]} 17. Be5 {[%clk 0:02:37]}  Bxe5 {[%clk 0:01:15]} 18. dxe5 {[%clk 0:02:37]}  Nd7 {[%clk 0:01:15]} 19. Qh5 {[%clk 0:02:37]}  Nf8 {[%clk 0:01:15]} 20. Nf3 {[%clk 0:02:30]}  Ra7 {[%clk 0:01:03]} 21. Nd4 {[%clk 0:02:28]}  Qc8 {[%clk 0:01:00]} 22. Re3 {[%clk 0:02:26]}  Ng6 {[%clk 0:00:37]} 23. a3 {[%clk 0:02:21]}  Qc7 {[%clk 0:00:20]} 24. Rf1 {[%clk 0:02:20]}  Bb7 {[%clk 0:00:16]} 25. f4 {[%clk 0:02:11]}  Ba6 {[%clk 0:00:14]} 26. Bb5 {[%clk 0:01:58]}  Bxb5 {[%clk 0:00:11]} 27. Nxb5 {[%clk 0:01:59]}  Qc5 {[%clk 0:00:11]} 28. Nd4 {[%clk 0:01:59]}  Ne7 {[%clk 0:00:07]} 29. g4 {[%clk 0:01:53]}  Qc8 {[%clk 0:00:05]} 30. f5 {[%clk 0:01:51]}  g6 {[%clk 0:00:03]} 31. Qh6 {[%clk 0:01:49]}  exf5 {[%clk 0:00:04]} 32. gxf5 {[%clk 0:01:47]}  Nxf5 {[%clk 0:00:01]} 33. Nxf5 {[%clk 0:01:45]}  gxf5 {[%clk 0:00:00]} 34. Rg3+ {[%clk 0:01:44]} 1-0